bitfinex/quotes_ETHUSD_20250220
["timestamp","ask_amount","ask_price","bid_price","bid_amount"]
[1740081009398,0.7549,2759.2,2758.6,0.269]
[1740081009588,3.62486,2758.8,2758.6,0.269]
[1740081009917,3.62489,2758.7,2758.6,0.269]
[1740081010126,4.37981,2758.7,2758.1,0.269]
[1740081010294,4.37981,2758.7,2758.2,3.62549]
[1740081010489,12.37793604,2758.9,2758.5,3.62508]
[1740081010490,5.36,2758.9,2758.5,3.62508]
[1740081010701,0.7966,2759.0,2758.5,0.725035]
[1740081011015,4.42113,2759.0,2758.5,0.725035]
[1740081011228,0.7966,2759.0,2758.5,0.725035]
[1740081011379,3.6249,2758.7,2758.2,3.62554]
[1740081011733,3.62516,2758.5,2758.1,0.7384287]
[1740081012030,3.62529,2758.4,2758.1,0.7384287]
[1740081012179,0.8181,2758.3,2758.1,0.7384287]
[1740081012713,0.8181,2758.3,2758.1,1.27793587]
[1740081013326,4.44364,2758.3,2758.0,0.269]
[1740081013526,0.8181,2758.3,2758.0,0.269]
[1740081014027,0.8181,2758.3,2758.0,3.89479]
[1740081015230,0.8181,2758.3,2758.0,3.89474]
[1740081015383,0.8128,2758.6,2758.2,3.62555]
[1740081015590,0.8128,2758.6,2758.1,4.08651165]
[1740081015813,0.8128,2758.6,2758.3,3.62529]
[1740081016029,0.8128,2758.6,2758.1,0.46084165]
[1740081016199,0.8014,2758.9,2758.6,3.62501]
[1740081016500,0.8014,2758.9,2758.5,3.62515]
[1740081017007,0.8014,2758.9,2758.2,0.7666]
[1740081017205,0.8014,2758.9,2758.5,3.62507]
[1740081017515,0.8014,2758.9,2758.5,4.350111]
[1740081017717,0.8014,2758.9,2758.5,5.06998409]
[1740081017888,0.8014,2758.9,2758.5,1.44491409]
[1740081018084,3.62492,2758.7,2758.2,4.39214]
[1740081018311,4.42612,2758.9,2757.7,12.83944604]
[1740081018312,0.7843,2758.6,2758.3,0.73373914]
[1740081018484,0.7843,2758.6,2757.9,0.269]
[1740081018485,3.62536,2758.4,2757.9,0.269]
[1740081018919,3.62547,2758.3,2757.9,0.269]
[1740081019122,3.62568,2758.1,2758.0,0.389499]
[1740081019297,3.62568,2758.1,2758.0,0.269]
[1740081019501,3.62515,2758.5,2758.0,0.269]
[1740081019843,4.42245,2758.2,2758.0,0.269]
[1740081020385,0.7969,2758.2,2758.0,0.269]
[1740081021723,4.42246,2758.2,2758.0,0.269]
[1740081022120,0.7969,2758.2,2758.0,0.269]
[1740081022869,3.62548,2758.3,2758.0,0.269]
[1740081023183,4.42656,2758.7,2758.0,0.72940235]
[1740081023336,4.42656,2758.7,2758.2,3.62542]
[1740081023538,5.36,2758.8,2758.2,3.62542]
[1740081023846,3.62445,2759.1,2758.6,4.42963]
[1740081024028,3.62445,2759.1,2758.6,0.8047]
[1740081024236,3.62457,2759.0,2758.6,0.8047]
[1740081024436,7.24894,2759.1,2758.7,1.1518585]
[1740081024785,3.62451,2759.0,2758.8,0.269]
[1740081024988,3.6245,2759.0,2758.8,0.269]
[1740081025370,3.62463,2758.9,2758.8,0.269]
[1740081025772,4.42623,2758.9,2758.8,0.269]
[1740081027997,5.5706336,2758.9,2758.8,0.269]
[1740081028196,3.62527,2758.5,2758.3,0.72049571]
[1740081028402,4.42287,2758.5,2758.3,0.72049571]
[1740081028609,4.42287,2758.5,2758.2,0.269]
[1740081028767,4.42287,2758.5,2758.2,0.658473]
[1740081029604,0.7976,2758.5,2758.2,0.658473]
[1740081029784,3.6253,2758.4,2758.2,1.37439483]
[1740081030408,3.62542,2758.3,2758.2,1.10539483]
[1740081030606,3.62591,2758.0,2757.7,0.8084]
[1740081030903,3.62591,2758.0,2757.7,0.72215425]
[1740081031110,4.42951,2758.0,2757.7,0.269]
[1740081031284,0.8036,2758.0,2757.7,0.269]
[1740081031481,3.62607,2757.8,2757.7,0.269]
[1740081032108,3.62621,2757.7,2757.2,1.17845278]
[1740081032406,3.62621,2757.7,2757.3,0.06753997]
[1740081032611,3.62621,2757.7,2757.4,0.48727728]
[1740081032792,3.62596,2757.9,2757.5,0.06243671]
[1740081032996,3.62609,2757.8,2757.5,0.06243671]
[1740081033201,3.62621,2757.7,2757.5,0.06243671]
[1740081033774,3.62634,2757.6,2757.5,0.06243671]
[1740081033974,3.62634,2757.6,2757.3,0.269]
[1740081033975,4.38814,2757.6,2757.2,0.269]
[1740081034196,3.62667,2757.4,2757.3,0.0634139]
[1740081034373,3.62667,2757.4,2757.0,1.0831]
[1740081034588,3.62667,2757.4,2757.1,0.06344615]
[1740081034918,3.62674,2757.3,2757.1,0.06344615]
[1740081035101,3.6268,2757.3,2757.1,0.06344615]
[1740081035626,3.62686,2757.2,2757.1,0.06344615]
[1740081035805,3.6268,2757.3,2757.1,0.06344615]
[1740081037022,3.62686,2757.2,2757.1,0.06344615]
[1740081037517,3.62703,2757.1,2756.9,8.145]
[1740081037721,3.62703,2757.1,2756.9,0.8414]
[1740081037891,3.62703,2757.1,2756.7,0.269]
[1740081038097,3.62688,2757.2,2756.8,0.73235385]
[1740081038301,3.62656,2757.5,2756.8,0.73235385]
[1740081038493,3.6267,2757.4,2756.8,4.35971385]
[1740081038695,3.6266,2757.4,2756.8,4.35971385]
[1740081039114,3.62656,2757.5,2756.9,0.46287139]
[1740081039322,3.62673,2757.4,2756.9,0.46287139]
[1740081039526,3.62677,2757.3,2756.9,0.46287139]
[1740081039723,3.62681,2757.3,2756.8,4.35972385]
[1740081040027,3.62681,2757.3,2756.8,7.98699385]
[1740081040194,3.62681,2757.3,2756.8,4.35962385]
[1740081040521,0.7618,2757.6,2756.9,0.7799]
[1740081040718,3.62659,2757.5,2756.9,0.7799]
[1740081040916,3.62674,2757.3,2756.9,1.32076739]
[1740081041287,3.62687,2757.2,2756.9,0.54086739]
[1740081041482,3.62711,2757.1,2756.8,0.73235385]
[1740081042011,3.62711,2757.1,2756.9,0.06160384]
[1740081042392,4.37697,2757.2,2756.9,0.06160384]
[1740081045449,0.7501,2757.2,2756.9,0.06160384]
[1740081045612,4.37698,2757.2,2756.9,0.06160384]
[1740081048890,3.62701,2757.1,2756.9,0.06160384]
[1740081050214,3.62713,2757.0,2756.9,0.06160384]
[1740081050408,0.7879,2756.9,2756.2,8.33802]
[1740081050628,3.62752,2756.7,2756.3,0.06212463]
[1740081050997,3.62767,2756.6,2756.3,0.06212463]
[1740081051433,4.44662,2756.4,2756.3,0.06212463]
[1740081052041,4.44662,2756.4,2756.1,0.269]
[1740081052042,0.8187,2756.4,2756.1,0.269]
[1740081052342,0.8187,2756.4,2756.2,0.06028923]
[1740081053631,0.8187,2756.4,2756.0,4.35960102]
[1740081053835,0.8187,2756.4,2756.1,0.06030537]
[1740081054247,4.44668,2756.4,2756.1,0.06030537]
[1740081054452,3.62788,2756.5,2756.1,0.06030537]
[1740081054677,0.8048,2756.7,2756.1,0.06030537]
[1740081054971,3.62798,2756.4,2756.1,0.25674502]
[1740081056236,3.62779,2756.5,2756.1,0.25674502]
[1740081056434,3.62795,2756.4,2756.1,0.25674502]
[1740081057772,3.62767,2756.6,2756.1,0.25674502]
[1740081057773,3.62767,2756.6,2756.1,3.88504502]
[1740081057950,5.36,2756.8,2756.7,3.62752]
[1740081058153,5.36,2756.8,2756.7,4.40632]
[1740081058329,5.36,2756.8,2756.7,4.73626582]
[1740081059070,5.36,2756.8,2756.7,1.10874582]
[1740081059766,8.98739,2756.8,2756.7,0.06094582]
[1740081060125,3.62778,2756.5,2756.4,0.269]
[1740081060331,3.62786,2756.5,2756.1,0.7887]
[1740081060527,3.62761,2756.7,2756.1,5.1533365]
[1740081060736,3.62761,2756.7,2756.2,3.62809]
[1740081060941,3.62761,2756.7,2756.1,2.43020715]
[1740081060942,3.62779,2756.5,2756.1,2.43020715]
[1740081061344,3.62799,2756.4,2756.0,0.269]
[1740081061739,3.62799,2756.4,2756.0,3.89744]
[1740081061947,3.62779,2756.5,2756.0,3.89735]
[1740081062147,3.62774,2756.6,2756.1,3.62827]
[1740081062379,8.98748,2756.8,2756.2,0.8145]
[1740081062668,8.9872,2757.0,2756.3,3.62798]
[1740081062829,3.62727,2756.9,2756.4,3.62781]
[1740081063025,5.36,2757.0,2756.6,3.62764]
[1740081063265,8.98719,2757.0,2756.7,0.7948]
[1740081063662,3.62732,2756.9,2756.7,0.7948]
[1740081063870,3.62755,2756.7,2756.3,0.8]
[1740081064067,3.62755,2756.7,2756.3,1.2899303]
[1740081064230,4.4037,2756.8,2756.3,1.2899303]
[1740081064433,3.6274,2756.8,2756.4,3.62791]
[1740081064747,3.62753,2756.7,2756.3,1.2899303]
[1740081065368,7.2549,2756.8,2756.3,4.9179603]
[1740081065551,3.6274,2756.8,2756.3,4.9179603]
[1740081066271,9.54489604,2757.0,2756.0,4.41687]
[1740081066444,3.62794,2756.4,2756.0,1.0575]
[1740081066649,3.62794,2756.4,2756.0,4.68593]
[1740081066841,3.62779,2756.5,2756.0,4.68587]
[1740081067041,3.62779,2756.5,2756.0,8.8553684]
[1740081067242,8.98754,2756.7,2756.0,5.2269984]
[1740081067442,3.62768,2756.6,2756.1,3.6282]
[1740081067666,3.62773,2756.6,2756.1,3.62821]
[1740081068346,3.62779,2756.5,2756.1,3.62821]
[1740081068550,8.98754,2756.7,2756.1,3.62831]
[1740081068551,3.62776,2756.6,2756.1,3.62831]
[1740081069189,5.36,2756.7,2756.3,0.8116]
[1740081069471,5.36,2756.7,2756.3,8.06751]
[1740081069635,5.36,2756.7,2756.3,0.8116]
[1740081069834,3.62771,2756.6,2756.1,3.62821]
[1740081070075,0.811,2756.5,2756.1,3.62821]
[1740081070259,4.4388,2756.5,2756.1,3.62821]
[1740081070465,0.811,2756.5,2756.1,3.62821]
[1740081070664,0.811,2756.5,2756.1,4.5344994]
[1740081071078,0.811,2756.5,2756.1,4.8034994]
[1740081071453,3.62766,2756.6,2756.1,4.8034994]
[1740081072078,3.62766,2756.6,2756.2,0.0608317]
[1740081072246,3.62781,2756.5,2756.2,0.0608317]
[1740081072981,0.7558,2756.7,2756.2,0.0608317]
[1740081073144,3.62774,2756.6,2756.2,0.0608317]
[1740081074081,4.38333,2756.7,2756.2,3.6888917]
[1740081074279,0.7558,2756.7,2756.2,0.99123081]
[1740081074486,4.38334,2756.7,2756.2,0.0608317]
[1740081074779,3.62785,2756.5,2756.2,0.0608317]
[1740081075183,7.25571,2756.5,2756.2,0.0608317]
[1740081075411,3.62785,2756.5,2756.2,0.0608317]
[1740081075592,0.7558,2756.7,2756.2,0.0608317]
[1740081075889,3.62805,2756.3,2756.0,0.8116]
[1740081076780,3.62806,2756.3,2756.0,0.8116]
[1740081077279,3.62793,2756.4,2756.0,0.8116]
[1740081077481,8.98767,2756.6,2756.1,7.25647]
[1740081077674,3.62779,2756.5,2756.0,1.3550734]
[1740081077982,7.25565,2756.5,2756.0,4.9835134]
[1740081078151,3.62779,2756.5,2756.0,4.9835134]
[1740081078780,3.62793,2756.4,2756.0,4.9835134]
[1740081079084,8.98777,2756.6,2756.1,3.62829]
[1740081079303,3.62779,2756.5,2756.1,3.62829]
[1740081079479,3.62779,2756.5,2756.0,4.9834934]
[1740081079895,3.62779,2756.5,2756.0,4.9834334]
[1740081080202,5.36,2756.6,2756.1,3.62831]
[1740081080410,5.36,2756.6,2756.1,4.58886674]
[1740081080701,12.61539,2756.6,2756.1,4.58886674]
[1740081081283,5.36,2756.6,2756.1,0.96063674]
[1740081081511,5.36,2756.6,2756.3,3.62802]
[1740081082306,5.36,2756.6,2756.5,3.62778]
[1740081082606,5.36,2756.6,2756.5,0.7575]
[1740081082803,5.36,2756.6,2756.3,3.62798]
[1740081082804,8.98767,2756.6,2756.3,0.7575]
[1740081083110,9.78187,2756.6,2756.1,4.58884674]
[1740081083295,4.42187,2756.6,2756.1,8.21708674]
[1740081083482,4.42187,2756.6,2756.2,3.62816]
[1740081084609,4.42187,2756.6,2756.0,0.7575]
[1740081084800,3.62787,2756.5,2756.0,4.38586]
[1740081085105,4.42187,2756.6,2756.1,3.62829]
[1740081085308,4.42187,2756.6,2756.1,7.25651]
[1740081085513,3.62754,2756.7,2756.1,4.5290824]
[1740081085674,3.62754,2756.7,2756.2,3.62809]
[1740081085874,3.62767,2756.6,2756.2,3.62809]
[1740081086311,4.4054,2756.8,2756.3,3.62794]
[1740081086474,6.62737,2756.9,2756.5,3.62771]
[1740081086475,3.62726,2756.9,2756.5,3.62771]
[1740081086679,5.36,2757.0,2756.5,3.62771]
[1740081086882,8.98709,2757.1,2756.6,3.62764]
[1740081087187,8.98709,2757.1,2756.7,0.06086929]
[1740081087383,5.36,2757.1,2756.7,3.68836929]
[1740081087583,5.36,2757.1,2756.9,3.62724]
[1740081087783,5.36,2757.1,2757.0,0.06075134]
[1740081088431,5.36,2757.6,2757.2,3.62683]
[1740081088611,5.36,2757.6,2757.2,3.62679]
[1740081088811,5.36,2757.6,2757.3,0.06053604]
[1740081089130,0.8223,2757.5,2756.8,0.8035]
[1740081089296,3.62679,2757.3,2756.7,0.269]
[1740081089492,4.44883,2757.5,2756.9,3.62725]
[1740081089493,3.6266,2757.4,2756.9,3.62725]
[1740081090125,7.25331,2757.4,2756.8,3.62729]
[1740081090470,3.6266,2757.4,2756.9,0.71426237]
[1740081090582,3.62694,2757.2,2756.9,0.71426237]
[1740081090786,0.7615,2757.0,2756.7,0.269]
[1740081090981,3.62726,2756.9,2756.5,0.269]
[1740081091525,3.62756,2756.7,2756.5,0.269]
[1740081091682,7.2547,2756.9,2756.5,0.269]
[1740081091878,3.62739,2756.8,2756.5,0.269]
[1740081092125,3.62732,2756.9,2756.5,0.269]
[1740081092325,3.62726,2756.9,2756.2,0.71455286]
[1740081092640,3.62726,2756.9,2756.3,3.62796]
[1740081092935,3.62754,2756.7,2756.2,3.62809]
[1740081093231,7.25514,2756.7,2756.2,3.62809]
[1740081093397,3.62754,2756.7,2756.2,3.62809]
[1740081093588,3.62754,2756.7,2756.2,4.16697375]
[1740081093788,3.62765,2756.6,2756.2,3.62809]
[1740081094331,3.62779,2756.5,2756.0,4.65146]
[1740081094495,4.40299,2756.5,2756.0,4.65146]
[1740081094698,3.62799,2756.4,2756.0,1.0231]
[1740081094901,4.40299,2756.5,2756.0,3.89743]
[1740081095123,4.40299,2756.5,2756.0,4.63478697]
[1740081095699,0.7752,2756.5,2756.0,4.63472697]
[1740081095915,4.41499,2756.8,2756.2,0.8262]
[1740081096231,3.62759,2756.7,2756.2,0.8262]
[1740081096525,3.62739,2756.8,2756.4,3.62791]
[1740081096727,5.36,2756.9,2756.3,3.62794]
[1740081096938,3.62748,2756.8,2756.2,0.8262]
[1740081097091,3.62761,2756.7,2756.2,0.8262]
[1740081097793,3.62761,2756.7,2756.2,4.45435]
[1740081098394,3.6274,2756.8,2756.3,3.62797]
[1740081098583,3.6274,2756.8,2756.2,1.7351047]
[1740081098756,3.62759,2756.7,2756.2,4.4543]
[1740081099170,3.62759,2756.7,2756.1,3.62824]
[1740081099495,3.62759,2756.7,2756.0,1.83955697]
[1740081099694,4.41081,2756.5,2756.0,5.46798697]
[1740081100093,4.4106,2756.7,2756.0,1.83955697]
[1740081100394,8.03824,2756.7,2756.1,3.62823]
[1740081100598,4.4106,2756.7,2756.1,3.62823]
[1740081100799,5.36,2756.9,2756.3,3.62797]
[1740081100954,3.62745,2756.8,2756.3,3.62797]
[1740081101396,3.62745,2756.8,2756.1,3.62827]
[1740081101566,3.62745,2756.8,2756.2,4.19328827]
[1740081101975,5.36,2756.9,2756.2,0.56517827]
[1740081102192,5.36,2756.9,2756.7,3.62742]
[1740081102375,3.62714,2757.0,2756.5,3.62766]
[1740081102575,3.62714,2757.0,2756.8,0.06031764]
[1740081102917,3.62726,2756.9,2756.3,0.8038]
[1740081103210,3.62726,2756.9,2756.4,3.6279]
[1740081104061,3.62709,2757.1,2756.4,3.62786]
[1740081104289,3.62713,2757.0,2756.5,3.62771]
[1740081104487,3.62713,2757.0,2756.5,4.433647]
[1740081104997,3.62705,2757.1,2756.6,3.62762]
[1740081105602,5.36,2757.2,2756.8,4.39286]
[1740081105790,8.98689,2757.2,2756.8,0.7655]
[1740081106095,5.36,2757.2,2756.8,0.7655]
[1740081106298,5.36,2757.2,2756.9,4.42929]
[1740081106503,5.36,2757.2,2757.0,3.62702]
[1740081106804,5.36,2757.2,2756.9,4.4293]
[1740081107002,3.6266,2757.4,2756.9,4.4293]
[1740081107186,8.98641,2757.6,2757.0,3.62704]
[1740081107365,5.36,2757.6,2756.9,0.80205]
[1740081107561,8.98641,2757.6,2757.1,3.62687]
[1740081107767,3.6265,2757.5,2757.0,3.6271]
[1740081107991,3.6265,2757.5,2757.1,3.62699]
[1740081108264,3.6265,2757.5,2756.9,3.62718]
[1740081108615,3.6265,2757.5,2757.1,3.62699]
[1740081108815,3.6265,2757.5,2756.8,4.66189]
[1740081108980,3.62647,2757.5,2757.0,3.62702]
[1740081111305,7.25302,2757.5,2757.0,3.62702]
[1740081111600,3.62647,2757.5,2757.0,3.62702]
[1740081112796,8.98645,2757.6,2757.0,7.25406]
[1740081113037,5.36,2757.6,2756.8,1.0345]
[1740081113166,5.36,2757.6,2757.3,3.62671]
[1740081113367,5.36,2757.7,2757.3,4.43771]
[1740081114706,5.36,2757.7,2757.3,4.43767]
[1740081115512,5.36,2757.7,2757.3,4.43766]
[1740081115913,8.98621,2757.7,2757.3,4.43766]
[1740081116715,3.62642,2757.6,2757.0,3.62702]
[1740081116932,3.62642,2757.6,2757.1,4.433493]
[1740081117136,8.98621,2757.7,2757.2,3.62681]
[1740081117501,8.98621,2757.7,2757.3,0.05988924]
[1740081117715,8.98621,2757.7,2757.2,3.62681]
[1740081117932,8.98621,2757.7,2757.4,0.05987312]
[1740081118227,3.62638,2757.6,2757.3,0.05988924]
[1740081118528,8.98621,2757.7,2757.4,0.05987312]
[1740081118732,5.36,2757.7,2757.4,0.05987312]
[1740081118937,12.61228,2757.8,2757.3,3.62671]
[1740081119234,12.61227,2757.8,2757.5,0.059857]
[1740081119398,3.62621,2757.7,2757.4,0.05987312]
[1740081119599,4.39621,2757.7,2757.6,0.05984088]
[1740081119921,3.62661,2757.4,2756.9,4.43816]
[1740081120419,3.62639,2757.6,2757.0,0.05984027]
[1740081120420,4.45309,2757.1,2757.0,0.05984027]
[1740081120629,0.8261,2757.4,2757.0,0.05984027]
[1740081120797,4.45276,2757.4,2756.6,1.48949516]
[1740081121130,0.8261,2757.4,2757.0,3.62708]
[1740081121526,3.62634,2757.6,2757.1,4.44212891]
[1740081121724,3.62658,2757.5,2757.1,0.81515891]
[1740081122029,1.4721517,2757.6,2757.1,0.05985891]
[1740081122216,3.62663,2757.4,2757.1,0.05985891]
[1740081122392,3.62674,2757.3,2756.8,4.3826]
[1740081122592,4.44414,2757.3,2757.2,0.05984279]
[1740081122831,3.62721,2757.0,2756.6,0.269]
[1740081123205,3.62721,2757.0,2756.7,0.05999991]
[1740081123409,0.8174,2756.9,2756.7,0.05999991]
[1740081123741,0.8174,2756.9,2756.8,0.05998378]
[1740081123742,6.1774,2756.9,2756.8,0.05998378]
[1740081124101,5.36,2756.9,2756.8,0.05998378]
[1740081124322,5.36,2756.9,2756.4,3.89684]
[1740081124520,5.36,2756.9,2756.8,0.05998378]
[1740081124718,5.36,2756.9,2756.4,3.89684]
[1740081124920,8.98726,2756.9,2756.8,0.0603176]
[1740081125245,8.98726,2756.9,2756.4,3.89689]
[1740081125423,8.98726,2756.9,2756.8,0.0603176]
[1740081125623,8.98726,2756.9,2756.4,3.89689]
[1740081125836,8.98726,2756.9,2756.3,0.70821848]
[1740081126167,3.6278,2756.5,2756.4,0.06038908]
[1740081126372,3.6278,2756.5,2756.0,4.42557]
[1740081126562,3.6278,2756.5,2756.4,0.06038908]
[1740081126764,0.8227,2756.6,2756.2,3.62817]
[1740081126942,0.8227,2756.6,2756.4,0.06038908]
[1740081127147,7.41559,2756.8,2756.2,3.62808]
[1740081127346,7.41559,2756.8,2756.5,0.06037295]
[1740081127548,3.7882,2756.8,2756.2,3.62808]
[1740081127830,7.4156,2756.8,2756.6,0.06035682]
[1740081128110,7.4156,2756.8,2756.2,3.62811]
[1740081128370,7.4156,2756.8,2756.7,0.06034069]
[1740081128556,2.428494,2756.8,2756.0,0.7972]
[1740081128739,5.36,2756.9,2756.7,0.06034069]
[1740081129070,8.98729,2756.9,2756.3,3.62804]
[1740081129478,3.62742,2756.8,2756.4,0.06058383]
[1740081130061,5.36,2756.9,2756.4,0.50714621]
[1740081130269,5.36,2756.9,2756.4,0.06058383]
[1740081130466,5.36,2756.9,2756.5,4.39672]
[1740081130786,3.62714,2757.0,2756.6,0.06049592]
[1740081133094,3.62729,2756.9,2756.6,0.06049592]
[1740081133785,8.98697,2757.2,2756.6,0.06049592]
[1740081134088,3.62711,2757.1,2756.6,0.06049592]
[1740081134491,3.62717,2757.0,2756.6,0.06049592]
[1740081134856,3.62711,2757.1,2756.6,0.06049592]
[1740081135075,3.62724,2757.0,2756.6,0.06049592]
[1740081135279,3.6272,2757.0,2756.6,0.06049592]
[1740081135666,3.62728,2756.9,2756.6,0.06049592]
[1740081135819,4.39098,2756.9,2756.6,0.06049592]
[1740081136169,4.39098,2756.9,2756.4,3.6279]
[1740081136408,4.39098,2756.9,2756.7,0.06055626]
[1740081136614,4.39098,2756.9,2756.3,5.43907964]
[1740081136615,3.62739,2756.8,2756.3,5.43907964]
[1740081136816,4.39098,2756.9,2756.4,3.62787]
[1740081137117,4.39098,2756.9,2756.4,3.68849552]
[1740081138423,4.39102,2756.9,2756.4,0.06062552]
[1740081138589,4.39102,2756.9,2756.4,3.68851552]
[1740081139016,3.62739,2756.8,2756.4,3.68851552]
[1740081139742,3.62756,2756.7,2756.4,0.06062552]
[1740081139889,0.7637,2756.9,2756.4,0.06062552]
[1740081140094,3.62778,2756.5,2756.4,0.06062552]
[1740081140392,3.62778,2756.5,2756.1,0.8291]
[1740081140639,3.62778,2756.5,2756.4,0.06063248]
[1740081140821,3.62778,2756.5,2756.1,0.8291]
[1740081141149,4.42207,2756.4,2755.9,3.89748]
[1740081141333,4.42207,2756.4,2755.9,9.00124498]
[1740081141815,4.42207,2756.4,2756.0,3.62844]
[1740081142231,4.42207,2756.4,2756.0,4.37057968]
[1740081142401,8.05008,2756.4,2756.0,0.74213968]
[1740081142598,4.42207,2756.4,2756.0,0.74213968]
[1740081142991,4.42207,2756.4,2756.0,4.37054968]
[1740081143219,3.6278,2756.5,2756.0,1.65030265]
[1740081143422,3.6278,2756.5,2756.0,5.27873265]
[1740081143623,3.62812,2756.3,2755.9,3.89748]
[1740081143854,4.41534,2756.2,2755.8,0.8136]
[1740081144117,0.7871,2756.2,2755.8,1.80382002]
[1740081144361,3.62838,2756.1,2755.8,0.72122002]
[1740081145273,4.43267,2756.1,2755.7,1.14301975]
[1740081145424,3.62871,2755.8,2755.7,1.14301975]
[1740081145624,4.43041,2755.8,2755.7,1.14301975]
[1740081145823,10.82370604,2755.8,2755.7,1.14301975]
[1740081146227,10.83120604,2755.8,2755.7,1.14301975]
[1740081146443,17.63719464,2755.8,2755.7,0.0992]
[1740081150672,17.64469464,2755.8,2755.7,0.0992]
[1740081163992,14.2438986,2755.8,2755.7,0.0992]
[1740081164150,12.79791,2755.8,2755.7,0.0992]
[1740081164670,12.79791,2755.8,2755.7,0.8887]
[1740081164671,5.36,2755.8,2755.7,0.8887]
[1740081165059,5.36,2755.8,2755.7,0.94948471]
[1740081166079,3.62859,2755.9,2755.7,0.94948471]
[1740081166256,3.62847,2756.0,2755.7,0.94948471]
[1740081166460,3.62849,2756.0,2755.7,0.94948471]
[1740081166765,3.62855,2756.0,2755.7,0.94948471]
[1740081167182,3.62844,2756.0,2755.7,0.94948471]
[1740081167384,3.62859,2755.9,2755.7,0.94948471]
[1740081169556,8.98859,2755.9,2755.7,0.94948471]
[1740081170966,3.62871,2755.8,2755.7,0.94948471]
[1740081173199,3.62871,2755.8,2755.7,0.15998471]
[1740081173357,3.62871,2755.8,2755.7,0.0992]
[1740081173563,3.62871,2755.8,2755.7,0.15952854]
[1740081175204,9.78818,2755.9,2755.7,0.15952854]
[1740081175407,3.62871,2755.8,2755.7,0.15952854]
[1740081175557,3.62871,2755.8,2755.7,0.0992]
[1740081177008,3.62871,2755.8,2755.7,0.15952854]
[1740081181309,8.98871,2755.8,2755.7,0.15952854]
[1740081182309,8.98871,2755.8,2755.7,0.0992]
[1740081182609,10.25044,2755.8,2755.7,0.0992]
[1740081183270,8.98871,2755.8,2755.7,0.0992]
[1740081183464,8.98871,2755.8,2755.7,0.15966083]
[1740081185914,5.36,2755.8,2755.7,0.15966083]
[1740081186110,5.36,2755.8,2755.7,4.56990083]
[1740081186271,5.36,2755.8,2755.7,4.50944]
[1740081186468,5.36,2755.8,2755.7,5.38374083]
[1740081186667,8.98801,2756.4,2755.9,3.62851]
[1740081186872,8.98801,2756.4,2756.0,0.7608]
[1740081187110,3.62805,2756.3,2756.0,0.82121241]
[1740081188528,3.62805,2756.3,2755.7,0.91304]
[1740081188529,3.63621,2755.8,2755.7,0.0992]
[1740081188669,4.42331,2755.8,2755.7,0.0992]
[1740081189293,9.78331,2755.8,2755.7,0.0992]
[1740081189513,16.17660604,2755.8,2755.7,0.0992]
[1740081189672,16.73410604,2755.8,2755.7,0.0992]
[1740081189869,18.77037564,2755.8,2755.7,0.0992]
[1740081192694,19.03767414,2755.8,2755.7,0.0992]
[1740081193006,15.0868781,2755.8,2755.7,0.0992]
[1740081194404,14.8195796,2755.8,2755.7,0.0992]
[1740081199941,15.3770796,2755.8,2755.7,0.0992]
[1740081201397,14.8195796,2755.8,2755.7,0.0992]
[1740081202235,15.3770796,2755.8,2755.7,0.0992]
[1740081202938,3.62963,2755.1,2755.0,0.7667]
[1740081203300,3.62963,2755.1,2755.0,0.05044657]
[1740081203822,3.62989,2754.9,2754.8,0.8228]
[1740081204436,3.62977,2755.0,2754.8,0.8228]
[1740081204734,7.25962,2755.0,2754.8,0.8228]
[1740081204926,3.62977,2755.0,2754.8,0.8228]
[1740081205600,3.62959,2755.2,2754.8,0.8228]
[1740081205836,5.36,2755.3,2754.8,0.8228]
[1740081206102,12.61884,2755.3,2754.8,4.4528]
[1740081206343,8.98938,2755.3,2754.8,5.261101]
[1740081207008,12.61885,2755.3,2754.9,0.05056024]
[1740081207215,8.98938,2755.3,2754.9,0.05056024]
[1740081207447,8.98938,2755.3,2755.0,0.8228]
[1740081207618,8.98938,2755.3,2755.0,0.87334409]
[1740081207947,8.98946,2755.3,2755.0,0.87334409]
[1740081208119,3.6295,2755.2,2755.0,0.87334409]
[1740081209667,3.62963,2755.1,2755.0,0.87334409]
[1740081209948,3.6295,2755.2,2755.0,0.87334409]
[1740081211137,3.6295,2755.2,2755.0,0.05054409]
[1740081211138,3.62963,2755.1,2755.0,0.05054409]
[1740081211649,1.261913,2755.1,2755.0,0.05055104]
[1740081211850,7.2592,2755.2,2754.8,0.7914]
[1740081212012,3.62965,2755.1,2755.0,0.05055104]
[1740081212216,3.62965,2755.1,2754.8,0.7914]
[1740081212568,3.62989,2754.9,2754.5,0.7914]
[1740081213741,3.63016,2754.7,2754.5,0.7914]
[1740081214535,3.63016,2754.7,2754.3,0.7914]
[1740081214835,8.99016,2754.7,2754.3,0.7914]
[1740081215517,3.63029,2754.6,2754.3,0.7914]
[1740081215722,3.63055,2754.4,2754.1,0.7914]
[1740081216025,3.63069,2754.3,2754.1,0.7914]
[1740081216559,9.82137,2754.5,2754.1,0.7914]
[1740081216560,8.99049,2754.5,2754.1,0.7914]
[1740081217345,3.6306,2754.4,2754.1,0.7914]
[1740081217548,3.6306,2754.4,2753.1,3.63222]
[1740081217549,3.63144,2753.8,2753.1,3.63222]
[1740081217748,5.36,2753.7,2753.4,0.7914]
[1740081217918,5.36,2753.7,2753.4,4.42325]
[1740081218118,5.36,2753.7,2753.4,0.7914]
[1740081218428,5.36,2753.7,2753.5,0.04462447]
[1740081218635,3.6316,2753.6,2753.5,0.04462447]
[1740081218836,3.6316,2753.6,2753.2,0.7677]
[1740081219237,3.6316,2753.6,2753.3,0.04485198]